fUST/lending_fUST_20241202
["ID","MTS","AMOUNT","RATE_DAILY","PERIOD"]
[343942098,1733112446960,-502.3823761,0.00027397,7]
[343942099,1733112446982,-536.99564545,0.00027397,7]
[343942100,1733112447004,-266.22877483,0.00027397,7]
[343942101,1733112447025,-505.64654747,0.00027397,7]
[343942102,1733112447046,-501.0135146,0.00027397,7]
[343942103,1733112447068,-600.60822193,0.00027397,7]
[343942104,1733112447089,-502.32984625,0.00027397,7]
[343942105,1733112447109,-500.73962808,0.00027397,7]
[343942106,1733112447129,-500.0,0.00027397,7]
[343942107,1733112447149,-547.32192831,0.00027397,7]
[343942108,1733112447174,-503.80494843,0.00027397,7]
[343942109,1733112447195,-512.71281711,0.00027397,7]
[343942110,1733112447216,-501.46420949,0.00027397,7]
[343942111,1733112447238,-553.18769252,0.00027397,7]
[343942112,1733112447260,-500.0,0.00027397,7]
[343942113,1733112447289,-506.26404549,0.00027397,7]
[343942114,1733112447313,-310.46604598,0.00027397,7]
[343942115,1733112447337,-503.25311614,0.00027397,7]
[343942116,1733112447363,-505.20676037,0.00027397,7]
[343942117,1733112447386,-500.0,0.00027397,7]
[343942118,1733112447407,-500.78338523,0.00027397,7]
[343942119,1733112447433,-332.37710217,0.00027397,7]
[343942120,1733112447454,-501.57465356,0.00027397,7]
[343942121,1733112447474,-488.70780014,0.00027397,7]
[343942122,1733112447494,-630.40096741,0.00027397,7]
[343942123,1733112447515,-500.0,0.00027397,7]
[343942124,1733112447534,-500.0,0.00027397,7]
[343942125,1733112447554,-501.73065078,0.00027397,7]
[343942126,1733112447574,-500.0,0.00027397,7]
[343942127,1733112447594,-513.87887373,0.00027397,7]
[343942128,1733112447615,-531.79150265,0.00027397,7]
[343942129,1733112447635,-509.36855042,0.00027397,7]
[343942130,1733112447656,-502.7695351,0.00027397,7]
[343942131,1733112447680,-500.0,0.00027397,7]
[343942132,1733112447702,-500.0,0.00027397,7]
[343942133,1733112447722,-505.84641113,0.00027397,7]
[343942134,1733112447744,-503.16710192,0.00027397,7]
[343942135,1733112447765,-500.0,0.00027397,7]
[343942136,1733112447787,-274.59243491,0.00027397,7]
[343942137,1733112447808,-513.05403765,0.00027397,7]
[343942138,1733112447830,-500.0,0.00027397,7]
[343942139,1733112447854,-503.6426751,0.00027397,7]
[343942140,1733112447877,-501.88728075,0.00027397,7]
[343942141,1733112447902,-502.96179916,0.00027397,7]
[343942142,1733112447936,-311.15935258,0.00027397,7]
[343942143,1733112447959,-503.09301975,0.00027397,7]
[343942144,1733112447981,-189.23719303,0.00027397,2]
[343942145,1733112448001,-482.84416749,0.00027397,7]
[343942146,1733112448022,-510.68224099,0.00027397,7]
[343942147,1733112448042,-500.0,0.00027397,7]
[343942148,1733112448063,-500.0,0.00027397,7]
[343942149,1733112448083,-506.21840377,0.00027397,7]
[343942150,1733112448104,-505.16937284,0.00027397,7]
[343942151,1733112448126,-500.0,0.00027397,7]
[343942152,1733112448147,-527.98517992,0.00027397,7]
[343942153,1733112448169,-500.0,0.00027397,7]
[343942154,1733112448197,-500.0,0.00027397,7]
[343942155,1733112448220,-503.53919324,0.00027397,7]
[343942156,1733112448242,-611.00251732,0.00027397,7]
[343942157,1733112448265,-502.23985659,0.00027397,7]
[343942158,1733112448286,-502.834476,0.00027397,7]
[343942159,1733112448307,-180.28446623,0.00027397,7]
[343942160,1733112448328,-539.89703956,0.00027397,7]
[343942161,1733112448349,-502.17859784,0.00027397,7]
[343942162,1733112448370,-507.4904245,0.00027397,7]
[343942163,1733112448390,-500.0,0.00027397,2]
[343942164,1733112448413,-512.69103575,0.00027397,7]
[343942165,1733112448441,-518.59195506,0.00027397,7]
[343942166,1733112448464,-500.0,0.00027397,7]
[343942167,1733112448484,-500.76686506,0.00027397,7]
[343942168,1733112448505,-501.10175652,0.00027397,7]
[343942169,1733112448525,-503.29947343,0.00027397,7]
[343942170,1733112448546,-513.14663587,0.00027397,7]
[343942171,1733112448568,-506.63943097,0.00027397,7]
[343942172,1733112448588,-511.92435894,0.00027397,7]
[343942173,1733112448608,-366.13827544,0.00027397,7]
[343942174,1733112448629,-501.33767705,0.00027397,7]
[343942175,1733112448650,-504.49400117,0.00027397,7]
[343942176,1733112448675,-507.44166039,0.00027397,7]
[343942177,1733112448697,-504.93349494,0.00027397,7]
[343942178,1733112448720,-507.66973986,0.00027397,7]
[343942179,1733112448744,-501.96375497,0.00027397,7]
[343942180,1733112448764,-505.97152834,0.00027397,7]
[343942181,1733112448784,-503.72042565,0.00027397,7]
[343942182,1733112448804,-503.32723352,0.00027397,7]
[343942183,1733112448826,-501.72389391,0.00027397,7]
[343942184,1733112448847,-505.43471192,0.00027397,7]
[343942185,1733112448868,-500.0,0.00027397,7]
[343942186,1733112448890,-500.8244933,0.00027397,7]
[343942187,1733112448992,-502.876122,0.00027397,7]
[343942188,1733112449018,-506.40935368,0.00027397,7]
[343942189,1733112449043,-500.0,0.00027397,7]
[343942190,1733112449067,-501.13018869,0.00027397,7]
[343942191,1733112449091,-537.36619142,0.00027397,7]
[343942192,1733112449113,-500.0,0.00027397,7]
[343942193,1733112449137,-501.91905682,0.00027397,7]
[343942194,1733112449159,-515.08541069,0.00027397,7]
[343942195,1733112449184,-500.0,0.00027397,7]
[343942196,1733112449206,-508.74397946,0.00027397,7]
[343942197,1733112449227,-500.0,0.00027397,7]
[343942198,1733112449250,-500.0,0.00027397,7]
[343942199,1733112449272,-506.25138473,0.00027397,7]
[343942200,1733112449296,-500.0,0.00027397,7]
[343942201,1733112449319,-500.0,0.00027397,7]
[343942202,1733112449341,-502.80118421,0.00027397,7]
[343942203,1733112449362,-500.0,0.00027397,7]
[343942204,1733112449382,-500.0,0.00027397,7]
[343942205,1733112449403,-500.0,0.00027397,7]
[343942206,1733112449427,-611.89206316,0.00027397,7]
[343942207,1733112449450,-502.3958269,0.00027397,7]
[343942208,1733112449472,-500.0,0.00027397,7]
[343942209,1733112449493,-509.45599185,0.00027397,7]
[343942210,1733112449514,-500.0,0.00027397,7]
[343942211,1733112449535,-509.78119396,0.00027397,7]
[343942212,1733112449560,-500.0,0.00027397,7]
[343942213,1733112449581,-506.47760343,0.00027397,7]
[343942214,1733112449602,-507.45577053,0.00027397,7]
[343942215,1733112449623,-158.11360785,0.00027397,7]
[343942216,1733112449645,-500.0,0.00027397,7]
[343942217,1733112449665,-505.79681301,0.00027397,7]
[343942218,1733112449690,-503.00337591,0.00027397,7]
[343942219,1733112449712,-500.0,0.00027397,7]
[343942220,1733112449735,-500.0,0.00027397,7]
[343942221,1733112449757,-503.56149404,0.00027397,7]
[343942222,1733112449778,-500.0,0.00027397,7]
[343942223,1733112449798,-507.35423621,0.00027397,7]
[343942224,1733112449819,-503.37511949,0.00027397,7]
[343942225,1733112449840,-504.52551221,0.00027397,7]
[343942226,1733112449862,-500.0,0.00027397,7]
[343942227,1733112449884,-500.0,0.00027397,7]
[343942228,1733112449905,-513.0806425,0.00027397,7]
[343942229,1733112449931,-556.6833146,0.00027397,7]
[343942230,1733112449953,-500.0,0.00027397,7]
[343942231,1733112449975,-624.10962033,0.00027397,7]
[343942232,1733112449997,-500.0,0.00027397,7]
[343942233,1733112450020,-261.88102788,0.00027397,7]
[343942234,1733112450042,-507.98551668,0.00027397,7]
[343942235,1733112450063,-500.0,0.00027397,7]
[343942236,1733112450084,-500.0,0.00027397,7]
[343942237,1733112450106,-500.52726905,0.00027397,7]
[343942238,1733112450127,-500.0,0.00027397,7]
[343942239,1733112450148,-500.0,0.00027397,7]
[343942240,1733112450169,-594.3139065,0.00027397,7]
[343942241,1733112450202,-500.0,0.00027397,7]
[343942242,1733112450225,-252.71878601,0.00027397,7]
[343942243,1733112450248,-569.9369643,0.00027397,7]
[343942244,1733112450270,-500.0,0.00027397,7]
[343942245,1733112450293,-500.38623356,0.00027397,7]
[343942246,1733112450316,-220.18508726,0.00027397,7]
[343942247,1733112450336,-500.0,0.00027397,7]
[343942248,1733112450357,-507.4523226,0.00027397,7]
[343942249,1733112450377,-504.30926154,0.00027397,7]
[343942250,1733112450399,-187.6465932,0.00027397,7]
[343942251,1733112450422,-506.22752739,0.00027397,7]
[343942252,1733112450446,-504.84292491,0.00027397,7]
[343942253,1733112450466,-1031.41,0.00027397,7]
[343942254,1733112450488,-501.79655608,0.00027397,7]
[343942255,1733112450508,-502.12314914,0.00027397,7]
[343942256,1733112450529,-502.90508604,0.00027397,7]
[343942257,1733112450550,-748.61,0.00027397,7]
[343942258,1733112450570,-420.30024043,0.00027397,7]
[343942259,1733112450590,-508.73614089,0.00027397,7]
[343942260,1733112450609,-500.0,0.00027397,7]
[343942261,1733112450630,-505.23037035,0.00027397,7]
[343942262,1733112450653,-505.19160582,0.00027397,7]
[343942263,1733112450677,-500.0,0.00027397,7]
[343942264,1733112450700,-500.0,0.00027397,2]
[343942265,1733112450719,-500.0,0.00027397,7]
[343942266,1733112450743,-450.31141736,0.00027397,7]
[343942267,1733112450765,-506.66833609,0.00027397,7]
[343942268,1733112450785,-500.0,0.00027397,7]
[343942269,1733112450807,-555.25,0.00027397,7]
[343942270,1733112450829,-502.36200706,0.00027397,7]
[343942271,1733112450851,-506.42814206,0.00027397,7]
[343942272,1733112450871,-500.0,0.00027397,7]
[343942273,1733112450970,-500.0,0.00027397,7]
[343942274,1733112450992,-500.0,0.00027397,7]
[343942275,1733112451015,-500.0,0.00027397,7]
[343942276,1733112451042,-500.0,0.00027397,7]
[343942277,1733112451065,-500.0,0.00027397,7]
[343942278,1733112451086,-514.29178676,0.00027397,7]
[343942279,1733112451108,-500.0,0.00027397,2]
[343942280,1733112451129,-500.0,0.00027397,7]
[343942281,1733112451149,-500.0,0.00027397,7]
[343942282,1733112451171,-504.32380333,0.00027397,7]
[343942283,1733112451197,-503.53586047,0.00027397,7]
[343942284,1733112451220,-500.0,0.00027397,7]
[343942285,1733112451242,-517.24919213,0.00027397,7]
[343942286,1733112451264,-509.98462815,0.00027397,7]
[343942287,1733112451284,-500.0,0.00027397,7]
[343942288,1733112451306,-500.0,0.00027397,7]
[343942289,1733112451327,-506.06830146,0.00027397,7]
[343942290,1733112451348,-500.0,0.00027397,7]
[343942291,1733112451369,-501.68687311,0.00027397,7]
[343942292,1733112451392,-500.0,0.00027397,7]
[343942293,1733112451413,-501.30456561,0.00027397,7]
[343942294,1733112451438,-516.56429695,0.00027397,7]
[343942295,1733112451458,-509.63148834,0.00027397,7]
[343942296,1733112451479,-521.57829011,0.00027397,7]
[343942297,1733112451500,-567.69313714,0.00027397,7]
[343942298,1733112451521,-500.0,0.00027397,7]
[343942299,1733112451543,-500.0,0.00027397,7]
[343942300,1733112451564,-500.0,0.00027397,7]
[343942301,1733112451584,-500.0,0.00027397,7]
[343942302,1733112451604,-500.0,0.00027397,7]
[343942303,1733112451626,-500.0,0.00027397,7]
[343942304,1733112451647,-501.42018556,0.00027397,7]
[343942305,1733112451666,-500.0,0.00027397,7]
[343942306,1733112451692,-229.08358679,0.00027397,7]
[343942307,1733112451713,-503.10756364,0.00027397,7]
[343942308,1733112451738,-502.03224502,0.00027397,7]
[343942309,1733112451759,-500.0,0.00027397,7]
[343942310,1733112451781,-501.90531019,0.00027397,7]
[343942311,1733112451802,-502.48691141,0.00027397,7]
[343942312,1733112451824,-500.0,0.00027397,7]
[343942313,1733112451846,-511.98876602,0.00027397,7]
[343942314,1733112451867,-502.88326495,0.00027397,7]
[343942315,1733112451889,-500.0,0.00027397,7]
[343942316,1733112451910,-500.0,0.00027397,7]
[343942317,1733112451939,-500.0,0.00027397,7]
[343942318,1733112451963,-500.0,0.00027397,7]
[343942319,1733112451987,-500.0,0.00027397,7]
[343942320,1733112452008,-502.35378765,0.00027397,7]
[343942321,1733112452029,-500.0,0.00027397,7]
[343942322,1733112452050,-506.04755427,0.00027397,7]
[343942323,1733112452072,-501.37160495,0.00027397,7]
[343942324,1733112452093,-500.71675606,0.00027397,7]
[343942325,1733112452112,-503.64199876,0.00027397,7]
[343942326,1733112452134,-502.27441585,0.00027397,7]
[343942327,1733112452155,-500.0,0.00027397,7]
[343942328,1733112452179,-507.08161782,0.00027397,7]
[343942329,1733112452201,-503.70307274,0.00027397,7]
[343942330,1733112452223,-501.34491586,0.00027397,7]
[343942331,1733112452252,-500.0,0.00027397,7]
[343942332,1733112452275,-512.08419139,0.00027397,7]
[343942333,1733112452298,-195.21787616,0.00027397,7]
[343942334,1733112452322,-504.67626875,0.00027397,7]
[343942335,1733112452344,-505.35697262,0.00027397,7]
[343942336,1733112452365,-500.0,0.00027397,7]
[343942337,1733112452385,-519.7834392,0.00027397,7]
[343942338,1733112452406,-500.0,0.00027397,7]
[343942339,1733112452429,-500.0,0.00027397,7]
[343942340,1733112452450,-500.0,0.00027397,7]
[343942341,1733112452471,-500.0,0.00027397,7]
[343942342,1733112452491,-1001.02908241,0.00027397,5]
[343942343,1733112452512,-502.48415154,0.00027397,7]
[343942344,1733112452533,-200.0,0.00027397,7]
[343942345,1733112452556,-500.0,0.00027397,7]
[343942346,1733112452577,-511.35804217,0.00027397,7]
[343942347,1733112452600,-504.28882652,0.00027397,7]
[343942348,1733112452622,-201.53096624,0.00027397,7]
[343942349,1733112452645,-500.0,0.00027397,7]
[343942350,1733112452667,-500.0,0.00027397,7]
[343942351,1733112452694,-500.0,0.00027397,7]
[343942352,1733112452715,-317.07183101,0.00027397,7]
[343942353,1733112452739,-229.65029554,0.00027397,7]
[343942354,1733112452760,-507.40463179,0.00027397,7]
[343942355,1733112452856,-500.0,0.00027397,7]
[343942356,1733112452880,-500.0,0.00027397,7]
[343942357,1733112452901,-539.55898413,0.00027397,7]
[343942358,1733112452927,-510.50632164,0.00027397,7]
[343942359,1733112452948,-509.65754176,0.00027397,7]
[343942360,1733112452971,-505.77602929,0.00027397,7]
[343942361,1733112452992,-501.26772823,0.00027397,7]
[343942362,1733112453014,-500.0,0.00027397,7]
[343942363,1733112453037,-507.77684285,0.00027397,7]
[343942364,1733112453059,-501.25572659,0.00027397,7]
[343942365,1733112453082,-500.0,0.00027397,7]
[343942366,1733112453105,-500.0,0.00027397,7]
[343942367,1733112453128,-500.0,0.00027397,7]
[343942368,1733112453151,-505.68386255,0.00027397,7]
[343942369,1733112453177,-502.83659622,0.00027397,7]
[343942370,1733112453199,-505.92925538,0.00027397,7]
[343942371,1733112453221,-458.61079816,0.00027397,7]
[343942372,1733112453244,-504.71696133,0.00027397,7]
[343942373,1733112453266,-550.66,0.00027397,7]
[343942374,1733112453291,-500.0,0.00027397,7]
[343942375,1733112453318,-500.0,0.00027397,7]
[343942376,1733112453346,-500.0,0.00027397,7]
[343942377,1733112453375,-387.29971491,0.00027397,7]
[343942378,1733112453401,-624.31905477,0.00027397,7]
[343942379,1733112453433,-501.7556985,0.00027397,7]
[343942380,1733112453456,-504.80256902,0.00027397,7]
[343942381,1733112453479,-527.29356716,0.00027397,7]
[343942382,1733112453501,-502.73433496,0.00027397,7]
[343942383,1733112453524,-639.22158329,0.00027397,7]
[343942384,1733112453548,-500.0,0.00027397,7]
[343942385,1733112453572,-500.0,0.00027397,7]
[343942386,1733112453595,-500.0,0.00027397,7]
[343942387,1733112453616,-504.07613186,0.00027397,7]
[343942388,1733112453637,-504.5919942,0.00027397,7]
[343942389,1733112453660,-507.51229295,0.00027397,7]
[343942390,1733112453686,-500.0,0.00027397,7]
[343942391,1733112453712,-500.0,0.00027397,7]
[343942392,1733112453734,-192.74725973,0.00027397,7]
[343942393,1733112453758,-500.0,0.00027397,7]
[343942394,1733112453782,-501.05951971,0.00027397,7]
[343942395,1733112453805,-504.43554,0.00027397,7]
[343942396,1733112453827,-500.0,0.00027397,7]
[343942397,1733112453849,-503.54139961,0.00027397,7]
[343942398,1733112453873,-500.0,0.00027397,7]
[343942399,1733112453896,-500.0,0.00027397,7]
[343942400,1733112453918,-505.73657748,0.00027397,7]
[343942401,1733112453944,-500.0,0.00027397,7]
[343942402,1733112453967,-501.24050351,0.00027397,7]
[343942403,1733112453989,-512.99260292,0.00027397,7]
[343942404,1733112454012,-523.52885261,0.00027397,7]
[343942405,1733112454035,-500.0,0.00027397,7]
[343942406,1733112454059,-500.0,0.00027397,7]
[343942407,1733112454083,-500.0,0.00027397,7]
[343942408,1733112454105,-500.0,0.00027397,7]
[343942409,1733112454127,-501.47752466,0.00027397,7]
[343942410,1733112454152,-500.0,0.00027397,7]
[343942411,1733112454179,-504.15365139,0.00027397,7]
[343942412,1733112454202,-500.0,0.00027397,7]
[343942413,1733112454225,-503.64600564,0.00027397,7]
[343942414,1733112454246,-502.97062264,0.00027397,7]
[343942415,1733112454269,-512.21432465,0.00027397,7]
[343942416,1733112454290,-500.0,0.00027397,7]
[343942417,1733112454313,-500.0,0.00027397,7]
[343942418,1733112454335,-500.0,0.00027397,7]
[343942419,1733112454357,-500.0,0.00027397,7]
[343942420,1733112454379,-500.0,0.00027397,7]
[343942421,1733112454402,-500.69016317,0.00027397,7]
[343942422,1733112454428,-500.0,0.00027397,7]
[343942423,1733112454451,-500.0,0.00027397,7]
[343942424,1733112454475,-515.50761226,0.00027397,7]
[343942425,1733112454499,-500.91013986,0.00027397,7]
[343942426,1733112454522,-500.0,0.00027397,7]
[343942427,1733112454544,-507.93544984,0.00027397,7]
[343942428,1733112454565,-580.40532694,0.00027397,7]
[343942429,1733112454587,-500.0,0.00027397,7]
[343942430,1733112454608,-500.0,0.00027397,7]
[343942431,1733112454629,-500.0,0.00027397,7]
[343942432,1733112454651,-500.0,0.00027397,7]
[343942433,1733112454673,-500.0,0.00027397,7]
[343942434,1733112454765,-501.88323114,0.00027397,7]
[343942435,1733112454801,-521.54161736,0.00027397,7]
[343942436,1733112454822,-500.0,0.00027397,7]
[343942437,1733112454845,-785.03,0.00027397,7]
[343942438,1733112454867,-497.9888288,0.00027397,7]
[343942439,1733112454891,-500.0,0.00027397,7]
[343942440,1733112454914,-504.35049595,0.00027397,7]
[343942441,1733112454941,-500.0,0.00027397,7]
[343942442,1733112454963,-507.89002456,0.00027397,7]
[343942443,1733112454987,-229.70728444,0.00027397,7]
[343942444,1733112455010,-503.87880016,0.00027397,7]
[343942445,1733112455032,-500.0,0.00027397,7]
[343942446,1733112455055,-505.14237993,0.00027397,7]
[343942447,1733112455076,-500.0,0.00027397,7]
[343942448,1733112455098,-500.0,0.00027397,7]
[343942449,1733112455121,-500.0,0.00027397,7]
[343942450,1733112455144,-596.14366982,0.00027397,7]
[343942451,1733112455168,-500.0,0.00027397,7]
[343942452,1733112455196,-506.89773864,0.00027397,7]
[343942453,1733112455220,-500.0,0.00027397,7]
[343942454,1733112455243,-501.10443386,0.00027397,7]
[343942455,1733112455268,-500.0,0.00027397,7]
[343942456,1733112455293,-500.0,0.00027397,7]
[343942457,1733112455315,-500.0,0.00027397,7]
[343942458,1733112455336,-500.0,0.00027397,7]
[343942459,1733112455357,-500.0,0.00027397,7]
[343942460,1733112455379,-500.0,0.00027397,7]
[343942461,1733112455400,-500.0,0.00027397,7]
[343942462,1733112455421,-1500.0,0.00027397,2]
[343942463,1733112455451,-500.0,0.00027397,7]
[343942464,1733112455473,-500.0,0.00027397,7]
[343942465,1733112455495,-500.0,0.00027397,7]
[343942466,1733112455518,-500.0,0.00027397,7]
[343942467,1733112455543,-487.20787821,0.00027397,7]
[343942468,1733112455566,-500.0,0.00027397,7]
[343942469,1733112455588,-505.52863855,0.00027397,7]
[343942470,1733112455610,-505.38153812,0.00027397,7]
[343942471,1733112455634,-500.0,0.00027397,2]
[343942472,1733112455658,-517.53321993,0.00027397,7]
[343942473,1733112455684,-552.04120962,0.00027397,7]
[343942474,1733112455710,-500.0,0.00027397,7]
[343942475,1733112455732,-500.0,0.00027397,7]
[343942476,1733112455759,-2129.51,0.00027397,7]
[343942477,1733112455782,-500.0,0.00027397,7]
[343942478,1733112455806,-500.0,0.00027397,7]
[343942479,1733112455829,-500.0,0.00027397,7]
[343942480,1733112455850,-500.0,0.00027397,7]
[343942481,1733112455873,-500.42628889,0.00027397,7]
[343942482,1733112455898,-500.0,0.00027397,7]
[343942483,1733112455921,-500.0,0.00027397,7]
[343942484,1733112455951,-500.0,0.00027397,7]
[343942485,1733112455976,-501.96163886,0.00027397,7]
[343942486,1733112456001,-500.0,0.00027397,7]
[343942487,1733112456025,-559.68929267,0.00027397,7]
[343942488,1733112456050,-521.47668039,0.00027397,7]
[343942489,1733112456076,-502.70622122,0.00027397,7]
[343942490,1733112456100,-500.0,0.00027397,7]
[343942491,1733112456133,-500.0,0.00027397,7]
[343942492,1733112456158,-507.97935063,0.00027397,7]
[343942493,1733112456196,-500.0,0.00027397,7]
[343942494,1733112456219,-584.23324603,0.00027397,7]
[343942495,1733112456242,-507.42755653,0.00027397,7]
[343942496,1733112456270,-500.0,0.00027397,7]
[343942497,1733112456293,-500.0,0.00027397,7]
[343942498,1733112456318,-500.0,0.00027397,7]
[343942499,1733112456342,-503.81475355,0.00027397,7]
[343942500,1733112456365,-500.0,0.00027397,7]
[343942501,1733112456388,-500.0,0.00027397,7]
[343942502,1733112456411,-343.94626576,0.00027397,7]
[343942503,1733112456441,-500.0,0.00027397,7]
[343942504,1733112456468,-1797.27,0.00027397,7]
[343942505,1733112456491,-500.0,0.00027397,7]
[343942506,1733112456512,-500.0,0.00027397,7]
[343942507,1733112456535,-605.43,0.00027397,7]
[343942508,1733112456557,-500.0,0.00027397,7]
[343942509,1733112456578,-500.0,0.00027397,7]
[343942510,1733112456672,-507.69087657,0.00027397,7]
[343942511,1733112456702,-555.27197195,0.00027397,7]
[343942512,1733112456726,-500.0,0.00027397,7]
[343942513,1733112456748,-500.0,0.00027397,7]
[343942514,1733112456771,-500.0,0.00027397,7]
[343942515,1733112456796,-500.0,0.00027397,7]
[343942516,1733112456821,-500.0,0.00027397,7]
[343942517,1733112456843,-500.0,0.00027397,7]
[343942518,1733112456865,-313.31376736,0.00027397,7]
[343942519,1733112456888,-414.82550118,0.00027397,7]
[343942520,1733112456910,-500.0,0.00027397,7]
[343942521,1733112456937,-500.0,0.00027397,7]
[343942522,1733112456960,-506.48072769,0.00027397,7]
[343942523,1733112456981,-500.0,0.00027397,7]
[343942524,1733112457004,-500.0,0.00027397,7]
[343942525,1733112457027,-583.89,0.00027397,7]
[343942526,1733112457050,-486.56499657,0.00027397,7]
[343942527,1733112457072,-500.0,0.00027397,7]
[343942528,1733112457095,-500.0,0.00027397,7]
[343942529,1733112457116,-500.0,0.00027397,7]
[343942530,1733112457137,-500.0,0.00027397,7]
[343942531,1733112457159,-500.0,0.00027397,7]
[343942532,1733112457184,-553.88108335,0.00027397,7]
[343942533,1733112457205,-500.0,0.00027397,7]
[343942534,1733112457228,-500.0,0.00027397,7]
[343942535,1733112457249,-502.06783753,0.00027397,7]
[343942536,1733112457270,-500.0,0.00027397,7]
[343942537,1733112457293,-554.00538379,0.00027397,7]
[343942538,1733112457314,-506.57903948,0.00027397,7]
[343942539,1733112457336,-500.0,0.00027397,7]
[343942540,1733112457359,-500.0,0.00027397,7]
[343942541,1733112457381,-552.05110515,0.00027397,7]
[343942542,1733112457402,-500.0,0.00027397,7]
[343942543,1733112457424,-501.22994321,0.00027397,7]
[343942544,1733112457450,-505.51801461,0.00027397,7]
[343942545,1733112457473,-500.0,0.00027397,7]
[343942546,1733112457495,-500.0,0.00027397,2]
[343942547,1733112457516,-500.0,0.00027397,7]
[343942548,1733112457537,-638.56145603,0.00027397,7]
[343942549,1733112457559,-899.95,0.00027397,7]
[343942550,1733112457581,-500.0,0.00027397,7]
[343942551,1733112457603,-500.0,0.00027397,7]
[343942552,1733112457625,-500.0,0.00027397,7]
[343942553,1733112457649,-26957.09,0.00027397,7]
[343942554,1733112457671,-500.0,0.00027397,7]
[343942555,1733112457707,-506.71102099,0.00027397,7]
[343942556,1733112457732,-501.84765439,0.00027397,7]
[343942557,1733112457753,-500.0,0.00027397,7]
[343942558,1733112457776,-508.64351823,0.00027397,7]
[343942559,1733112457799,-501.40246804,0.00027397,7]
[343942560,1733112457822,-500.0,0.00027397,7]
[343942561,1733112457845,-501.82785611,0.00027397,7]
[343942562,1733112457868,-500.0,0.00027397,7]
[343942563,1733112457890,-500.0,0.00027397,7]
[343942564,1733112457912,-507.25904103,0.00027397,7]
[343942565,1733112457936,-504.68249135,0.00027397,7]
[343942566,1733112457957,-500.0,0.00027397,7]
[343942567,1733112457980,-502.30846257,0.00027397,7]
[343942568,1733112458003,-4286.11,0.00027397,7]
[343942569,1733112458024,-500.0,0.00027397,7]
[343942570,1733112458046,-500.0,0.00027397,7]
[343942571,1733112458070,-502.29323622,0.00027397,7]
[343942572,1733112458092,-500.0,0.00027397,7]
[343942573,1733112458114,-500.0,0.00027397,7]
[343942574,1733112458135,-503.68,0.00027397,7]
[343942575,1733112458157,-503.71628681,0.00027397,7]
[343942576,1733112458180,-500.0,0.00027397,7]
[343942577,1733112458201,-506.23482646,0.00027397,7]
[343942578,1733112458223,-822.9,0.00027397,7]
[343942579,1733112458245,-507.61713547,0.00027397,7]
[343942580,1733112458267,-506.64296357,0.00027397,7]
[343942581,1733112458288,-500.0,0.00027397,7]
[343942582,1733112458311,-510.99598257,0.00027397,7]
[343942583,1733112458425,-502.30038833,0.00027397,7]
[343942584,1733112458453,-500.0,0.00027397,7]
[343942585,1733112458475,-502.21094225,0.00027397,7]
[343942586,1733112458497,-508.48883939,0.00027397,7]
[343942587,1733112458518,-500.0,0.00027397,7]
[343942588,1733112458542,-500.0,0.00027397,7]
[343942589,1733112458565,-1257.7,0.00027397,7]
[343942590,1733112458587,-510.70584409,0.00027397,7]
[343942591,1733112458608,-521.75268151,0.00027397,7]
[343942592,1733112458630,-508.07276939,0.00027397,7]
[343942593,1733112458651,-613.83195182,0.00027397,7]
[343942594,1733112458673,-500.74431628,0.00027397,7]
[343942595,1733112458702,-501.99453372,0.00027397,7]
[343942596,1733112458724,-500.0,0.00027397,7]
[343942597,1733112458746,-500.0,0.00027397,7]